bitfinex/quotes_ETHUSD_20220118
["timestamp","ask_amount","ask_price","bid_price","bid_amount"]
[1642529542527,0.1292,3095.6,3095.1,7.46557]
[1642529542724,0.1292,3096.2,3095.1,2.00257]
[1642529542929,0.03090527,3096.2,3095.3,5.85]
[1642529543129,0.00341054,3096.1,3095.5,0.80764]
[1642529543329,0.1292,3096.0,3095.5,0.80764]
[1642529543527,2.28246321,3096.0,3095.5,0.80764]
[1642529543827,0.00227369,3095.9,3095.5,0.80764]
[1642529544028,1.19525978,3095.7,3095.5,0.80764]
[1642529544226,1.19525978,3095.7,3095.2,1.00170527]
[1642529544227,1.19525978,3095.7,3095.2,2.61690527]
[1642529544428,1.19525978,3095.7,3095.3,1.6153]
[1642529544627,0.00170527,3095.8,3095.6,0.80762]
[1642529545034,0.00113685,3095.7,3095.6,0.80762]
[1642529546475,0.8405508,3096.1,3095.6,0.80762]
[1642529546476,0.8405508,3096.1,3095.7,5.85]
[1642529546672,0.8405508,3096.1,3095.8,2.32611488]
[1642529546870,0.00170527,3096.0,3095.9,0.1292]
[1642529547070,0.00170527,3096.0,3095.9,0.5942]
[1642529547271,0.00170527,3096.0,3095.9,2.8704328]
[1642529547675,0.00170527,3096.0,3095.9,7.7204328]
[1642529547869,0.1292,3097.0,3096.0,5.85]
[1642529548071,0.1292,3097.0,3096.3,0.80735]
[1642529548269,0.1292,3097.0,3096.4,0.465]
[1642529548270,0.00397896,3096.7,3096.4,0.465]
[1642529548476,0.00397896,3096.7,3096.4,1.3059]
[1642529548671,0.00341054,3096.6,3096.4,1.3059]
[1642529548869,0.00341054,3096.6,3096.4,2.3059]
[1642529549072,0.00284211,3096.5,3096.4,2.3059]
[1642529549270,0.00284211,3096.5,3096.4,3.11325]
[1642529549472,0.00284211,3096.5,3096.4,2.11325]
[1642529549675,0.00284211,3096.5,3096.4,4.7279459]
[1642529550321,0.00284211,3096.5,3096.4,5.5352959]
[1642529550517,0.00284211,3096.5,3096.4,7.49077753]
[1642529550916,0.00284211,3096.5,3096.4,5.51243753]
[1642529551116,1.06124631,3096.6,3096.4,0.465]
[1642529551922,1.36124631,3096.6,3096.0,1.199]
[1642529552123,1.36124631,3096.6,3095.5,4.9773]
[1642529552124,0.129,3096.5,3095.5,4.9773]
[1642529552321,3.3984338,3096.5,3096.1,0.00227369]
[1642529552521,0.93679,3096.5,3095.6,0.00511581]
[1642529552721,0.129,3096.5,3095.6,0.00511581]
[1642529552926,0.3,3096.3,3095.6,0.00511581]
[1642529553120,0.1292,3096.2,3095.6,0.00511581]
[1642529553322,0.1292,3096.2,3095.6,0.81280581]
[1642529553762,1.43107667,3096.1,3095.7,0.00454738]
[1642529553967,0.1292,3096.0,3095.7,0.00454738]
[1642529554968,0.1292,3096.0,3095.5,0.00568423]
[1642529555169,0.1292,3096.0,3095.5,0.81339423]
[1642529555579,0.1292,3096.0,3095.6,0.00511581]
[1642529555974,0.1292,3096.0,3095.6,1.62033581]
[1642529556371,0.1292,3096.0,3095.8,0.80759]
[1642529556572,0.1292,3096.0,3095.9,2.2070565]
[1642529556772,0.1292,3096.0,3095.9,2.21046704]
[1642529557272,0.1292,3096.0,3095.9,0.00341054]
[1642529557914,0.60499922,3096.1,3095.9,0.00341054]
[1642529561262,0.60499922,3096.1,3095.7,0.00454738]
[1642529561670,0.60499922,3096.1,3095.4,0.129]
[1642529561671,5.4,3096.0,3095.4,0.129]
[1642529561971,0.03530004,3095.8,3095.5,0.00113685]
[1642529562168,0.1292,3095.7,3095.5,0.00113685]
[1642529562368,0.15529499,3095.7,3095.5,0.00113685]
[1642529562568,1.17686535,3095.6,3095.5,0.00113685]
[1642529562770,2.04664545,3095.6,3095.5,0.00113685]
[1642529562972,2.34664545,3095.6,3095.5,0.00113685]
[1642529563174,2.21744545,3095.6,3095.5,0.00113685]
[1642529563770,2.34664545,3095.6,3095.5,0.00113685]
[1642529565720,5.85,3095.5,3094.3,5.25018]
[1642529565919,0.02756335,3095.4,3094.3,0.1292]
[1642529566118,0.01396958,3095.2,3094.4,0.00625266]
[1642529566316,0.1292,3095.1,3094.4,0.00625266]
[1642529566520,0.14508672,3095.4,3094.3,2.38197893]
[1642529566720,0.80819,3095.2,3094.3,2.38197893]
[1642529567020,2.28971672,3094.8,3094.3,2.38197893]
[1642529567221,0.1292,3094.7,3094.3,2.38197893]
[1642529567419,2.28971672,3094.8,3094.3,2.38197893]
[1642529568019,1.98971672,3094.8,3094.3,0.00682108]
[1642529568223,1.30324932,3094.4,3094.3,0.00682108]
[1642529568519,1.30324932,3094.4,3094.0,0.81663635]
[1642529569072,0.1292,3094.9,3094.1,0.00795793]
[1642529569768,0.1292,3094.9,3094.2,1.82590141]
[1642529570168,0.1292,3094.9,3094.3,0.00682108]
[1642529570570,2.27956579,3094.8,3094.3,0.00682108]
[1642529571168,1.82031607,3094.7,3094.3,0.00682108]
[1642529571574,0.02981718,3094.6,3094.3,0.00682108]
[1642529571774,0.02981718,3094.6,3093.9,0.00909478]
[1642529572074,1.44502691,3094.1,3093.9,0.00909478]
[1642529572523,1.82031607,3094.7,3093.9,0.00909478]
[1642529572717,0.8081609,3094.8,3093.9,0.00909478]
[1642529572718,0.8081609,3094.8,3094.0,1.82571383]
[1642529573115,0.8081609,3094.8,3094.1,0.00795793]
[1642529573519,0.9373108,3095.0,3094.1,0.00795793]
[1642529573718,1.52366564,3094.8,3094.1,0.00795793]
[1642529574319,3.8187,3095.1,3094.1,0.00795793]
[1642529574521,3.8187,3095.1,3094.2,1.95491383]
[1642529574819,3.8187,3095.1,3094.4,1.61569]
[1642529575017,1.58508237,3095.8,3094.5,0.5942]
[1642529575224,1.26630534,3095.5,3094.7,1.44198892]
[1642529575424,2.99312469,3095.5,3094.8,0.1292]
[1642529575623,1.26630534,3095.5,3094.8,0.00397897]
[1642529575826,1.26630534,3095.5,3094.9,0.00341054]
[1642529576028,1.26630534,3095.5,3095.0,0.80782]
[1642529576469,1.26630534,3095.5,3095.1,0.00227369]
[1642529579274,0.00113685,3095.7,3095.2,0.80779]
[1642529579487,0.00113685,3095.7,3095.2,2.03289]
[1642529579677,0.00113685,3095.7,3095.3,0.59533685]
[1642529580123,0.00113685,3095.7,3095.3,1.59533685]
[1642529580320,1.37493517,3095.7,3095.3,0.59533685]
[1642529580519,1.37493517,3095.7,3095.3,1.59533685]
[1642529580721,0.00113685,3095.7,3095.3,3.01793685]
[1642529580923,0.00113685,3095.7,3095.4,0.80775]
[1642529581227,0.00113685,3095.7,3095.4,2.63023487]
[1642529581826,1.25701519,3095.6,3095.4,2.63023487]
[1642529582328,1.25701519,3095.6,3095.4,0.80775]
[1642529584270,0.00113685,3095.7,3095.4,0.80775]
[1642529585374,0.00113685,3095.7,3095.5,2.16798266]
[1642529585575,0.00113685,3095.7,3095.6,7.22109785]
[1642529585775,0.00113685,3095.7,3095.6,8.49360785]
[1642529585975,0.00113685,3095.7,3095.6,9.49360785]
[1642529586779,0.1292,3097.0,3095.7,5.85]
[1642529586979,0.1292,3097.0,3096.2,1.32386299]
[1642529587181,0.00511581,3096.6,3096.1,0.228]
[1642529587617,0.00454738,3096.5,3096.1,0.228]
[1642529587818,0.1292,3097.0,3096.2,0.80746]
[1642529588216,0.0022737,3096.9,3096.3,0.00113684]
[1642529588418,0.129,3096.8,3096.3,0.00113684]
[1642529588617,0.13070527,3096.8,3096.3,0.00113684]
[1642529588819,1.4795933,3096.6,3096.3,0.00113684]
[1642529589022,0.00113685,3096.7,3096.3,0.00113684]
[1642529589219,0.84516289,3096.9,3096.4,0.8075]
[1642529589418,0.129,3096.8,3096.4,0.8075]
[1642529589621,0.13070527,3096.8,3096.4,0.8075]
[1642529589819,0.00113685,3096.7,3096.4,0.8075]
[1642529591474,0.1291,3096.8,3096.4,0.8075]
[1642529591678,0.1291,3096.8,3096.5,0.00113684]
[1642529592776,0.129,3097.0,3096.5,0.00113684]
[1642529593179,0.13070527,3097.0,3096.2,0.00284212]
[1642529593779,1.2529046,3096.8,3096.2,0.00284212]
[1642529594381,0.129,3096.7,3096.2,0.00284212]
[1642529594580,0.129,3096.7,3096.3,0.80753]
[1642529595022,0.129,3096.8,3096.4,0.00170527]
[1642529595320,0.129,3096.9,3096.4,0.00170527]
[1642529595721,0.129,3096.9,3096.5,0.80748]
[1642529595921,0.13070527,3097.0,3096.5,0.80748]
[1642529596321,0.85034867,3096.8,3096.5,0.80748]
[1642529596521,0.85034867,3096.8,3096.5,3.04483457]
[1642529597122,0.85034867,3096.9,3096.5,3.04483457]
[1642529597521,0.85034867,3096.9,3096.5,0.80748]
[1642529598022,1.39748657,3096.7,3096.5,0.80748]
[1642529598222,1.39748657,3096.7,3096.3,0.465]
[1642529598622,1.39748657,3096.7,3096.4,0.00170527]
[1642529599468,0.00170527,3097.0,3096.4,0.00170527]
[1642529599667,0.13070527,3097.0,3096.4,0.00170527]
[1642529600675,0.13070527,3097.0,3096.4,0.80921527]
[1642529600874,0.84912708,3096.9,3096.4,0.80921527]
[1642529601074,0.84912708,3096.9,3096.5,0.00113685]
[1642529601477,1.65670118,3096.9,3096.2,0.00284212]
[1642529601882,1.65670118,3096.9,3096.4,0.80747]
[1642529601883,0.84912708,3096.9,3096.4,0.80747]
[1642529602078,1.79914011,3096.8,3096.4,0.80747]
[1642529602278,0.84912708,3096.8,3096.5,0.00113685]
[1642529602926,0.00170527,3097.0,3096.4,0.00170527]
[1642529603126,0.00170527,3097.0,3096.6,1.33452455]
[1642529603327,0.00170527,3097.0,3096.4,0.00170527]
[1642529603726,0.00170527,3097.0,3096.6,0.80741]
[1642529604227,0.80083235,3097.2,3096.6,0.80741]
[1642529604432,0.80083235,3097.1,3096.7,0.00170527]
[1642529604627,1.50232254,3097.0,3096.7,0.00170527]
[1642529605029,1.43218801,3097.0,3096.7,0.00170527]
[1642529605827,1.43218801,3097.0,3096.7,0.80911527]
[1642529606268,1.43218801,3097.0,3096.8,0.00113685]
[1642529606676,6.00341025,3096.9,3096.5,0.00284212]
[1642529606876,1.98055525,3096.5,3096.4,0.00341054]
[1642529607077,1.98055525,3096.5,3096.3,0.00397896]
[1642529607275,1.26386504,3096.4,3096.3,0.00397896]
[1642529607473,1.26386504,3096.4,3095.8,0.00682108]
[1642529607474,0.01532433,3096.3,3095.8,0.00682108]
[1642529607674,0.01532433,3096.3,3095.7,0.0073895]
[1642529608075,1.26386504,3096.4,3095.7,0.0073895]
[1642529608678,1.26386504,3096.4,3095.7,1.6225695]
[1642529609079,1.26386504,3096.4,3095.8,0.00682108]
[1642529609278,1.26386504,3096.4,3095.9,0.80764]
[1642529609783,1.26386504,3096.4,3096.0,0.00568423]
[1642529610618,1.26386504,3096.4,3096.1,0.8076]
[1642529611017,1.26386504,3096.4,3096.2,0.00454739]
[1642529612023,1.98055525,3096.5,3096.2,0.81210739]
[1642529612326,1.98055525,3096.5,3096.3,0.00397896]
[1642529612623,0.129,3096.8,3096.3,0.00397896]
[1642529612824,1.72099111,3097.3,3096.3,0.00397896]
[1642529613024,1.72099111,3097.3,3096.5,0.00556781]
[1642529613222,0.00113685,3097.2,3096.6,0.80739]
[1642529613422,0.00113685,3097.2,3096.6,0.80966369]
[1642529613622,0.00113685,3097.2,3096.7,0.00170527]
[1642529613871,0.00113685,3097.2,3096.7,1.01500527]
[1642529614076,0.00113685,3097.2,3096.7,1.82234527]
[1642529614275,0.00113685,3097.2,3096.8,1.67140062]
[1642529614676,0.00113685,3097.2,3096.8,2.47873062]
[1642529614982,0.00113685,3097.2,3096.9,2.42693695]
[1642529615176,0.00113685,3097.2,3096.9,5.50628695]
[1642529615584,0.00113685,3097.2,3096.9,5.44929105]
[1642529615777,0.00113685,3097.2,3096.9,3.1513541]
[1642529615980,0.00113685,3097.2,3096.9,3.9585741]
[1642529616178,0.00113685,3097.2,3096.9,4.7657466]
[1642529616578,0.01164296,3097.1,3096.9,4.7657466]
[1642529616780,0.01164296,3097.1,3097.0,0.8072]
[1642529617179,0.01164296,3097.1,3097.0,1.8072]
[1642529617822,0.01164296,3097.1,3097.0,3.74703668]
[1642529619227,0.01164296,3097.1,3097.0,4.21203668]
[1642529622195,0.00113685,3097.2,3097.1,5.85]
[1642529622395,0.00113685,3097.2,3097.1,9.72478]
[1642529622692,0.00113685,3097.2,3097.1,10.72478]
[1642529622895,5.46498584,3098.5,3097.4,1.61407]
[1642529623093,5.46498584,3098.5,3097.6,0.80704]
[1642529623291,5.46498584,3098.5,3098.0,1.82774357]
[1642529623292,0.00682108,3098.4,3098.0,1.82774357]
[1642529623495,0.00682108,3098.4,3097.9,2.06469449]
[1642529623693,0.00625266,3098.3,3097.9,2.06469449]
[1642529623893,0.00625266,3098.3,3097.9,0.80703]
[1642529624093,0.00568423,3098.2,3097.9,0.80703]
[1642529624295,0.00568423,3098.2,3098.1,0.80702]
[1642529624494,1.87969017,3098.5,3098.1,0.80702]
[1642529624697,0.129,3098.4,3098.1,0.80702]
[1642529624894,1.40820911,3098.3,3098.1,0.80702]
[1642529625329,0.00568423,3098.2,3098.1,0.80702]
[1642529626232,2.28685909,3098.2,3098.1,0.80702]
[1642529626429,0.00568423,3098.2,3098.1,0.80702]
[1642529627331,0.00568423,3098.2,3098.0,1.61404]
[1642529627533,1.66360923,3098.2,3097.7,2.07927]
[1642529627732,1.66360923,3098.2,3097.7,1.61427]
[1642529627733,0.13411581,3098.1,3097.7,1.61427]
[1642529628039,0.00454739,3098.0,3097.7,1.61427]
[1642529628431,0.00397896,3097.9,3097.7,1.61427]
[1642529628631,1.2817219,3097.8,3097.7,1.61427]
[1642529628879,1.28513244,3097.8,3097.7,1.61427]
[1642529629081,0.00341054,3097.8,3097.7,1.61427]
[1642529632821,0.00341054,3097.8,3097.7,4.59182461]
[1642529633024,0.00341054,3097.8,3097.7,5.59182461]
[1642529633622,0.00341054,3097.8,3097.7,6.05682461]
[1642529633823,0.00341054,3097.8,3097.7,7.07922461]
[1642529635426,0.847542,3098.8,3097.8,5.85]
[1642529635630,0.847542,3098.8,3098.1,0.80678]
[1642529635832,0.847542,3098.8,3098.2,0.465]
[1642529635833,0.00511581,3098.7,3098.2,0.465]
[1642529636028,0.00511581,3098.7,3098.3,0.129]
[1642529636275,0.00454739,3098.6,3098.4,0.465]
[1642529636481,0.00454739,3098.6,3098.5,3.70811435]
[1642529636679,1.71928584,3099.4,3098.6,0.80681]
[1642529636880,0.129,3099.3,3098.7,0.465]
[1642529637079,0.129,3099.4,3098.7,0.465]
[1642529637479,0.13809477,3099.4,3098.7,0.465]
[1642529637879,0.13809477,3099.4,3099.0,1.51537934]
[1642529638281,0.84795251,3099.3,3099.0,1.51537934]
[1642529638485,0.84795251,3099.3,3099.2,2.28098424]
[1642529638682,0.84795251,3099.3,3099.2,6.14452984]
[1642529638881,0.84795251,3099.3,3099.2,6.60952984]
[1642529639083,0.84795251,3099.3,3099.2,7.60952984]
[1642529639281,4.66381,3100.0,3099.2,7.60952984]
[1642529639483,1.54197,3100.0,3099.8,1.78398245]
[1642529639782,0.01193689,3099.9,3099.8,1.42857993]
[1642529640035,0.14093689,3099.9,3099.8,1.42857993]
[1642529640227,0.14093689,3099.9,3099.8,2.23514993]
[1642529640228,0.01193689,3099.9,3099.8,2.23514993]
[1642529640426,0.01193689,3099.9,3099.8,5.15841118]
[1642529640626,0.01193689,3099.9,3099.8,6.15841118]
[1642529640826,0.01193689,3099.9,3099.8,6.62341118]
[1642529641029,1.54197,3100.0,3099.8,6.89431118]
[1642529641227,1.54197,3100.0,3099.8,7.19431118]
[1642529641432,1.59028584,3100.5,3100.0,3.95]
[1642529641630,1.59028584,3100.5,3100.1,1.465]
[1642529641829,0.00284212,3100.4,3100.2,1.95280538]
[1642529642029,0.00284212,3100.4,3100.2,3.41780538]
[1642529642230,0.0022737,3100.3,3100.2,3.41780538]
[1642529642435,1.59028584,3101.1,3100.3,5.85]
[1642529642636,1.59028584,3101.1,3100.4,1.27121]
[1642529642830,1.04445755,3100.9,3100.5,5.85]
[1642529643130,1.59028584,3101.1,3100.6,3.07850684]
[1642529643329,1.59028584,3101.1,3101.0,1.53125709]
[1642529643534,1.53155416,3101.5,3101.0,3.60947709]
[1642529643973,0.00341054,3101.4,3101.1,1.0]
[1642529644175,0.00341054,3101.4,3101.1,0.80609]
[1642529644375,0.13164212,3101.3,3101.0,0.465]
[1642529644576,0.13164212,3101.3,3100.7,1.40024]
[1642529644776,0.13164212,3101.3,3100.7,1.27134]
[1642529644777,0.0022737,3101.2,3100.7,1.27134]
[1642529644975,0.1288,3101.1,3100.7,2.27134]
[1642529645174,0.00170527,3101.1,3100.8,2.97872579]
[1642529645376,0.1288,3101.9,3100.9,6.315]
[1642529645377,0.00113685,3101.0,3100.9,6.315]
[1642529645576,0.00113685,3101.0,3100.9,8.137]
[1642529645775,0.00113685,3101.0,3100.9,14.59848714]
[1642529645976,0.00113685,3101.0,3100.9,11.68878483]
[1642529646181,0.00113685,3101.0,3100.9,5.83878483]
[1642529646380,0.00113685,3101.0,3100.9,6.64491483]
[1642529646579,0.00113685,3101.0,3100.9,5.83878483]
[1642529646778,0.00113685,3101.0,3100.9,4.14558483]
[1642529646980,0.00113685,3101.0,3100.9,4.01678483]
[1642529648330,0.00113685,3101.0,3100.9,7.04290856]
[1642529648529,0.00113685,3101.0,3100.9,5.01678483]
[1642529649330,0.1288,3102.0,3101.0,5.85]
[1642529649531,0.1288,3102.0,3101.2,1.632149]
[1642529649829,3.8182,3102.2,3101.3,0.465]
[1642529649830,0.00454739,3101.8,3101.3,0.465]
[1642529650231,3.8182,3102.2,3101.4,2.53948039]
[1642529650232,0.00397896,3101.7,3101.4,2.53948039]
[1642529650432,0.00397896,3101.7,3101.5,0.465]
[1642529650632,0.00341054,3101.6,3101.5,1.465]
[1642529650832,1.054e-05,3101.6,3101.5,3.66019072]
[1642529651034,0.1288,3102.6,3101.8,0.02814801]
[1642529651283,0.1288,3102.6,3102.2,2.23083204]
[1642529651478,0.1288,3102.6,3102.4,5.65]
[1642529651678,0.1288,3102.6,3102.5,1.465]
[1642529652280,0.1288,3102.6,3102.5,0.465]
[1642529652778,0.14082691,3103.0,3102.3,0.00113684]
[1642529653178,0.14366903,3103.0,3102.3,0.00113684]
[1642529653783,0.14366903,3103.0,3101.8,0.00397896]
[1642529654078,0.14366903,3103.0,3101.9,0.80603]
[1642529654278,0.13164212,3103.0,3102.3,2.00979722]
[1642529655737,0.13164212,3103.0,3102.0,1.61467212]
[1642529656029,0.13164212,3103.0,3102.1,3.62941227]
[1642529656438,0.13164212,3103.0,3102.2,0.80745527]
[1642529656634,0.00284212,3103.0,3102.3,0.80591]
[1642529656835,0.13164212,3103.0,3102.3,0.80704685]
[1642529657236,0.13164212,3103.0,3102.8,2.12796952]
[1642529658235,0.13164212,3103.0,3102.3,0.80704685]
[1642529658437,0.13164212,3103.0,3102.3,3.83604233]
[1642529658638,0.13164212,3103.0,3102.4,1.465]
[1642529658878,1.61830752,3102.7,3102.4,2.3495]
[1642529659279,1.61830752,3102.7,3102.5,2.04610358]
[1642529659478,1.61830752,3102.7,3102.6,3.265]
[1642529659678,1.61830752,3102.7,3102.6,0.465]
[1642529659880,1.61944437,3102.7,3102.6,0.465]
[1642529660483,1.74824437,3102.7,3102.4,0.1288]
[1642529660680,0.1288,3102.6,3102.4,0.1288]
[1642529662925,1.61944437,3102.7,3102.4,0.1288]
[1642529663525,0.1288,3102.6,3102.4,0.1288]
[1642529663928,1.61944437,3102.7,3102.4,0.1288]
[1642529664427,1.61944437,3102.7,3102.4,0.93469]
[1642529665230,1.61944437,3102.7,3102.4,6.05691331]
[1642529665725,1.61944437,3102.7,3102.5,0.00990155]
[1642529665927,1.12845148,3102.7,3102.6,6.26138]
[1642529666131,0.1288,3103.8,3102.8,6.6556]
[1642529666384,0.1288,3103.8,3102.9,0.465]
[1642529666583,0.1288,3104.2,3103.0,5.85]
[1642529666787,0.00397896,3103.7,3103.1,0.465]
[1642529666983,0.00397896,3103.7,3103.2,2.15894911]
[1642529667181,0.00341054,3103.6,3103.2,2.75274911]
[1642529667387,0.00341054,3103.6,3103.2,3.55825471]
[1642529667586,8.98155416,3105.1,3103.3,6.85]
[1642529667587,3.9787,3104.9,3103.3,6.85]
[1642529667783,3.9787,3104.9,3103.4,0.5938]
[1642529667983,0.00284212,3104.1,3103.4,0.89493685]
[1642529668392,0.00227369,3104.0,3103.4,0.89493685]
[1642529668784,0.00170527,3103.9,3103.7,0.80544]
[1642529668989,0.00170527,3103.9,3103.6,0.465]
[1642529669185,0.14271123,3103.8,3103.4,0.12993685]
[1642529669390,0.01391123,3103.8,3103.4,0.12993685]
[1642529669583,0.1288,3103.7,3103.4,0.12993685]
[1642529670034,0.1288,3103.9,3103.4,0.12993685]
[1642529670430,0.00113685,3103.8,3103.4,0.12993685]
[1642529670631,0.1288,3103.7,3103.4,0.12993685]
[1642529670831,0.00113685,3103.8,3103.4,0.12993685]
[1642529671634,0.00113685,3103.8,3103.4,1.04133685]
[1642529672038,0.00113685,3103.8,3103.5,2.1979655]
[1642529672236,0.00113685,3103.8,3103.6,0.465]
[1642529672434,0.00113685,3103.8,3103.6,0.5938]
[1642529672634,0.00113685,3103.8,3103.6,1.5938]
[1642529672842,1.54197,3104.6,3103.8,0.00416773]
[1642529673036,1.54197,3104.6,3103.9,0.5938]
[1642529673234,1.54197,3104.6,3104.0,1.9778502]
[1642529673235,0.00397896,3104.5,3104.0,1.9778502]
[1642529673436,0.00397896,3104.5,3104.1,1.39911]
[1642529673636,1.54197,3104.6,3104.1,3.51941]
[1642529673637,0.00341054,3104.4,3104.1,3.51941]
[1642529674082,0.00284211,3104.3,3104.1,3.51941]
[1642529674282,1.54197,3104.6,3104.2,5.85]
[1642529674479,1.54197,3104.6,3104.4,0.80517]
[1642529674686,0.00113685,3104.5,3104.4,0.80517]
[1642529674982,0.00113685,3104.5,3104.4,1.27017]
[1642529675182,0.00113685,3104.5,3104.4,3.72017]
[1642529675385,0.1288,3105.5,3104.7,5.85]
[1642529675587,0.1288,3105.5,3104.9,1.6099847]
[1642529675782,0.1288,3105.5,3105.0,0.5938]
[1642529675984,3.95576637,3105.6,3105.0,0.765]
[1642529676184,0.1288,3106.1,3105.1,0.1288]
[1642529676387,0.1288,3106.1,3105.2,2.16137181]
[1642529676388,0.00568424,3105.5,3105.2,2.16137181]
[1642529676590,0.1288,3106.1,3105.4,6.6548]
[1642529676789,0.1288,3106.1,3105.5,0.1287]
[1642529676985,0.00284211,3106.0,3105.5,0.465]
[1642529677191,0.00284211,3106.0,3105.5,1.465]
[1642529677384,0.00227369,3105.9,3105.5,1.465]
[1642529677637,0.00227369,3105.9,3105.6,0.80491]
[1642529677944,0.1287,3106.8,3105.5,2.07482]
[1642529677945,0.00170527,3105.8,3105.5,2.07482]
[1642529678138,0.00170527,3105.8,3105.5,0.465]
[1642529678337,0.1287,3106.8,3105.5,0.465]
[1642529678338,0.00113684,3105.7,3105.5,0.465]
[1642529678537,0.00113684,3105.7,3105.3,0.00113685]
[1642529678739,0.54501491,3106.7,3105.3,0.00113685]
[1642529678740,0.1288,3105.6,3105.3,0.00113685]
[1642529678939,0.80518,3106.0,3105.3,0.00113685]
[1642529679138,0.1287,3105.9,3105.3,0.00113685]
[1642529679340,0.05359,3105.9,3105.3,0.00113685]
[1642529679544,0.05359,3105.9,3105.3,0.80855054]
[1642529679750,0.80513,3106.2,3105.3,0.80855054]
[1642529679945,2.97869694,3106.8,3105.4,0.00284212]
[1642529679946,0.0536,3106.1,3105.4,0.00284212]
[1642529680147,0.00227369,3106.3,3105.4,0.00284212]
[1642529680347,0.0536,3106.2,3105.3,0.00341054]
[1642529680544,0.05530527,3106.2,3105.3,0.00341054]
[1642529680746,0.00113685,3106.1,3105.3,0.80854054]
[1642529680946,0.0536,3106.0,3105.3,0.80854054]
[1642529681146,0.0536,3106.0,3105.4,0.00284212]
[1642529682187,0.01262762,3105.9,3105.4,0.00284212]
[1642529682489,0.01262762,3105.9,3104.9,0.00568424]
[1642529682490,0.03353812,3105.7,3104.9,0.00568424]
[1642529682685,0.1288,3105.6,3104.9,0.00568424]
[1642529682985,0.1288,3105.6,3104.4,0.00852635]
[1642529682986,0.0320141,3105.5,3104.4,0.00852635]
[1642529683184,0.3,3105.9,3104.4,0.00852635]
[1642529683185,0.80546,3105.2,3104.4,0.00852635]
[1642529683384,0.1288,3105.1,3104.3,0.00909478]
[1642529683585,0.1288,3105.1,3104.1,0.01023162]
[1642529683785,0.00401443,3104.8,3104.1,0.01023162]
[1642529683985,0.1288,3104.7,3104.1,0.01023162]
[1642529684384,0.80553,3105.1,3104.1,0.01023162]
[1642529685037,1.28878985,3104.7,3104.1,0.01023162]
[1642529685836,1.50460685,3104.0,3103.9,0.01136847]
[1642529686035,1.50460685,3104.0,3103.7,0.01250532]
[1642529686437,1.50460685,3104.0,3103.4,0.01421059]
[1642529686937,1.50460685,3104.0,3103.5,1.9190733]
[1642529687136,1.61138,3104.5,3103.5,1.9190733]
[1642529687338,1.61138,3104.5,3103.6,0.01307374]
[1642529687837,1.62390347,3104.5,3103.6,0.01307374]
[1642529688037,0.80573,3104.3,3103.6,0.01307374]
[1642529688337,1.51977853,3103.7,3103.4,0.01421059]
[1642529688536,0.8057806,3104.2,3103.4,0.01421059]
[1642529688783,0.8057806,3104.2,3103.3,0.01477901]
[1642529688982,0.01252347,3104.5,3103.9,1.68487081]
[1642529689188,0.50671804,3104.2,3103.3,0.01477901]
[1642529689384,0.50671804,3104.2,3104.0,0.01080005]
[1642529689385,1.31248564,3104.2,3104.0,0.01080005]
[1642529689584,1.45766625,3103.6,3103.3,0.01477901]
[1642529689984,1.31248564,3104.2,3103.1,0.01591586]
[1642529690186,1.61164,3104.1,3103.1,0.01591586]
[1642529690584,0.8058,3103.9,3103.1,0.01591586]
[1642529690785,0.8057139,3104.4,3103.0,1.62780428]
[1642529690983,1.43314151,3103.9,3103.0,1.75660428]
[1642529691183,1.24595854,3103.4,3103.1,0.01591586]
[1642529691393,1.24595854,3103.4,3103.2,0.1288]
[1642529691590,1.24595854,3103.4,3103.2,1.93371712]
[1642529691789,1.24595854,3103.4,3103.3,0.01477901]
[1642529692389,1.24595854,3103.4,3102.8,0.01762113]
[1642529692940,1.24595854,3103.4,3102.6,0.01875798]
[1642529693136,1.24595854,3103.4,3102.7,0.1288]
[1642529693535,1.24595854,3103.4,3102.8,0.01762113]
[1642529694136,1.24595854,3103.4,3102.6,0.01875798]
[1642529694336,1.24595854,3103.4,3102.9,1.7209119]
[1642529694737,1.24595854,3103.4,3103.0,0.01648428]
[1642529694937,4.71504,3103.7,3103.0,0.01648428]
[1642529695139,0.80584,3103.7,3103.0,0.01648428]
[1642529695542,0.80584,3103.7,3102.8,0.01762113]
[1642529695943,1.49956751,3103.5,3102.9,0.80578]
[1642529696143,1.49956751,3103.5,3102.9,2.73093617]
[1642529696385,1.49956751,3103.5,3103.0,0.01648428]
[1642529696684,4.59657,3104.1,3103.0,0.01648428]
[1642529696888,3.7908,3104.1,3103.1,0.93452]
[1642529697086,0.00568423,3104.0,3103.1,1.39952]
[1642529697487,0.00511581,3103.9,3103.1,1.39952]
[1642529697690,1.73143341,3103.5,3103.1,1.39952]
[1642529697885,1.37538698,3103.6,3103.1,1.27072]
[1642529698091,0.00227369,3103.4,3103.2,0.1288]
[1642529698287,0.00284212,3103.5,3103.2,0.5938]
[1642529698486,0.00170527,3103.3,3103.2,0.5938]
[1642529698688,0.00227369,3103.4,3103.2,0.5938]
[1642529698889,0.00170527,3103.3,3103.2,0.1288]
[1642529699088,0.00170527,3103.3,3103.0,1.61128]
[1642529699287,0.00170527,3103.3,3102.9,0.1288]
[1642529699489,1.50416158,3103.1,3102.9,0.1288]
[1642529699689,1.50416158,3103.1,3102.4,1.207]
[1642529699690,4.2,3103.0,3102.4,1.207]
[1642529699890,1.50416158,3103.1,3102.3,1.1407]
[1642529700136,1.50416158,3103.1,3102.0,4.3779]
[1642529700137,1.50416158,3103.1,3102.5,0.00284212]
[1642529700540,2.31011158,3103.1,3102.1,0.00511581]
[1642529700744,2.26011158,3103.1,3102.1,1.61691581]
[1642529700940,2.26011158,3103.1,3102.1,1.6118]
[1642529701142,1.50416158,3103.1,3102.2,0.00454739]
[1642529702139,1.52293466,3102.3,3102.2,0.00454739]
[1642529703247,0.80602,3102.8,3102.2,2.28557025]
[1642529703643,0.80602,3102.8,3102.3,0.00397897]
[1642529704681,1.54144712,3102.7,3102.3,0.00397897]
[1642529705182,2.34753712,3102.7,3102.2,0.00454739]
[1642529705384,0.1288,3102.6,3102.2,0.00454739]
[1642529705685,0.1288,3102.6,3102.0,0.00568424]
[1642529706085,0.93493,3102.6,3102.0,0.00568424]
[1642529706284,0.1288,3102.6,3102.0,0.00568424]
[1642529706484,1.74089,3103.1,3102.0,0.00568424]
[1642529706885,0.50211752,3102.5,3102.0,0.00568424]
[1642529707084,0.50211752,3102.5,3102.2,1.6504661]
[1642529707531,0.50211752,3102.5,3102.3,0.00397897]